bitfinex/quotes_SOLUSD_20251117
["timestamp","ask_amount","ask_price","bid_price","bid_amount"]
[1763410058564,9.78882769,130.22,130.16,15.0290471]
[1763410058760,15.0290471,130.19,130.12,18.12096]
[1763410058961,15.0290471,130.19,130.14,15.0290471]
[1763410059165,15.0290471,130.19,130.13,0.7]
[1763410059166,9.78882769,130.23,130.16,15.0290471]
[1763410059347,9.78882769,130.23,130.12,18.12096]
[1763410059348,15.0290471,130.23,130.17,15.7290471]
[1763410059553,15.0290471,130.22,130.17,15.7290471]
[1763410060069,0.7,130.26,130.21,18.12096]
[1763410060242,24.81787479,130.26,130.21,15.0290471]
[1763410060446,15.0290471,130.26,130.21,15.7290471]
[1763410060647,9.78882769,130.26,130.21,15.7290471]
[1763410060957,0.7,130.29,130.19,15.0290471]
[1763410060958,0.7,130.28,130.19,15.0290471]
[1763410061270,24.81787479,130.28,130.23,15.0290471]
[1763410061454,15.0290471,130.27,130.22,15.0290471]
[1763410061648,24.81787479,130.28,130.22,15.7390471]
[1763410061853,24.81787479,130.28,130.23,15.0290471]
[1763410062246,15.0290471,130.25,130.21,18.12096]
[1763410062454,9.78882769,130.29,130.22,15.0290471]
[1763410062656,15.0290471,130.28,130.23,15.0290471]
[1763410063157,0.69,130.3,130.23,15.7390471]
[1763410063468,15.0290471,130.29,130.24,15.0290471]
[1763410063684,24.81787479,130.27,130.21,0.71]
[1763410063869,15.0290471,130.25,130.19,18.12096]
[1763410064042,18.12096,130.32,130.05,54.31549358]
[1763410064043,15.0290471,130.21,130.15,15.0290471]
[1763410064242,0.69,130.21,130.13,0.71]
[1763410064444,15.0290471,130.16,130.11,15.0290471]
[1763410064691,15.0290471,130.15,130.1,15.7390471]
[1763410064856,15.0290471,130.12,129.95,23.13]
[1763410065057,9.78882769,130.14,130.03,15.7390471]
[1763410065058,15.0290471,130.08,130.03,15.7390471]
[1763410065265,9.78882769,130.1,130.04,18.12096]
[1763410065459,15.0290471,130.09,130.04,0.71]
[1763410065660,15.0290471,130.08,130.04,0.71]
[1763410065867,15.0290471,130.06,130.01,15.7390471]
[1763410066100,15.0290471,130.06,130.02,18.12096]
[1763410066302,15.0290471,130.06,130.02,0.71]
[1763410066668,24.81787479,130.07,130.02,0.71]
[1763410066907,15.0290471,130.05,130.0,15.0290471]
[1763410067223,15.0290471,130.02,129.97,15.0290471]
[1763410067402,15.0290471,130.01,129.96,15.0290471]
[1763410067890,15.0290471,130.01,129.97,0.71]
[1763410068099,15.0290471,130.02,129.97,15.7390471]
[1763410068403,15.0290471,130.01,129.96,33.1500071]
[1763410068581,15.0290471,130.0,129.96,18.12096]
[1763410069277,15.0290471,130.0,129.94,15.7390471]
[1763410069491,15.0290471,129.98,129.93,15.0290471]
[1763410069684,0.69,130.0,129.93,15.0290471]
[1763410069891,15.0290471,129.98,129.93,33.1500071]
[1763410070212,0.69,130.0,129.93,18.12096]
[1763410070383,15.0290471,129.97,129.92,15.7390471]
[1763410070702,15.0290471,129.98,129.92,18.83096]
[1763410070910,15.0290471,129.98,129.87,9.98882769]
[1763410070911,15.0290471,129.94,129.88,0.71]
[1763410071070,15.0290471,129.94,129.89,15.0290471]
[1763410071267,0.69,130.0,129.93,15.0290471]
[1763410071614,0.69,130.0,129.92,15.0290471]
[1763410071615,15.0290471,129.97,129.92,15.0290471]
[1763410071812,15.0290471,129.99,129.94,33.1500071]
[1763410072102,24.81787479,130.01,129.96,15.0290471]
[1763410072591,24.81787479,130.01,129.95,15.0290471]
[1763410072592,15.0290471,130.0,129.95,15.0290471]
[1763410072788,15.0290471,130.0,129.94,18.12096]
[1763410073003,15.0290471,130.0,129.95,15.0290471]
[1763410073588,15.0290471,130.0,129.95,0.71]
[1763410073791,15.0290471,129.96,129.87,0.91]
[1763410074109,15.0290471,129.95,129.9,15.0290471]
[1763410074291,10.47882769,129.98,129.9,15.7390471]
[1763410074609,15.0290471,129.97,129.92,15.0290471]
[1763410075399,15.0290471,129.97,129.92,15.7390471]
[1763410075717,15.7190471,129.97,129.91,15.0290471]
[1763410075899,15.0290471,129.97,129.91,15.0290471]
[1763410076094,15.0290471,129.98,129.93,15.0290471]
[1763410076305,15.0290471,129.98,129.92,18.83096]
[1763410076613,15.0290471,129.94,129.89,15.0290471]
[1763410076813,15.0290471,129.95,129.9,15.0290471]
[1763410077186,15.0290471,129.95,129.9,15.7390471]
[1763410077721,15.0290471,129.95,129.88,18.12096]
[1763410077722,0.69,130.0,129.92,15.0290471]
[1763410077919,0.69,130.0,129.91,0.71]
[1763410077920,15.0290471,129.96,129.91,15.7390471]
[1763410078425,15.0290471,129.95,129.9,15.0290471]
[1763410079317,15.0290471,129.95,129.9,15.7390471]
[1763410079620,15.7190471,129.96,129.89,18.12096]
[1763410079794,15.0290471,129.95,129.9,15.7390471]
[1763410079987,0.69,129.99,129.92,15.0290471]
[1763410080184,0.69,130.01,129.91,18.83096]
[1763410080413,102.7,130.05,129.96,15.0290471]
[1763410080590,15.0290471,130.02,129.97,15.0290471]
[1763410080794,2.0,130.13,130.01,33.1500071]
[1763410081101,15.0290471,130.06,129.98,0.71]
[1763410081415,15.0290471,130.04,129.98,18.83096]
[1763410081614,15.0290471,130.04,129.99,15.0290471]
[1763410081916,15.0290471,130.03,129.98,33.1500071]
[1763410082225,15.0290471,130.03,129.98,33.8600071]
[1763410082515,18.12096,130.07,129.98,33.8600071]
[1763410082516,0.69,130.07,130.0,15.0290471]
[1763410082819,2.0,130.12,130.02,15.0290471]
[1763410083020,24.81787479,130.05,129.98,0.71]
[1763410083324,15.0290471,130.02,129.97,15.0290471]
[1763410083498,15.0290471,130.0,129.95,15.7390471]
[1763410083689,15.0290471,129.97,129.91,0.71]
[1763410083893,15.0290471,129.94,129.88,0.71]
[1763410084088,15.0290471,129.94,129.89,15.0290471]
[1763410084427,15.0290471,129.98,129.93,15.0290471]
[1763410084640,24.81787479,129.99,129.94,15.0290471]
[1763410084795,0.69,130.03,129.94,0.71]
[1763410085116,15.0290471,130.01,129.96,15.0290471]
[1763410085316,9.78882769,130.02,129.96,15.0290471]
[1763410085688,15.0290471,130.01,129.96,15.0290471]
[1763410085892,0.69,130.09,130.0,15.0290471]
[1763410086109,0.69,130.08,129.97,0.71]
[1763410086333,0.69,130.08,129.97,18.83096]
[1763410086334,9.78882769,130.05,129.97,18.83096]
[1763410086494,9.78882769,130.05,129.98,15.0290471]
[1763410086832,15.0290471,130.05,130.0,15.0290471]
[1763410087004,28.59978769,130.07,129.98,18.83096]
[1763410087005,15.0290471,130.06,130.01,15.0290471]
[1763410087404,15.0290471,130.05,130.01,0.71]
[1763410087728,15.0290471,130.05,130.0,0.71]
[1763410087904,15.0290471,130.01,129.93,0.71]
[1763410088113,15.0290471,129.99,129.94,15.0290471]
[1763410088305,15.0290471,129.99,129.9,9.78882769]
[1763410088306,15.0290471,130.01,129.96,15.0290471]
[1763410088540,15.0290471,130.0,129.95,15.7390471]
[1763410088741,15.0290471,130.01,129.96,15.7390471]
[1763410089099,2.0,130.1,129.97,18.83096]
[1763410089425,15.0290471,130.03,129.98,15.0290471]
[1763410089601,27.90978769,130.06,130.0,15.0290471]
[1763410089801,15.0290471,130.03,129.98,18.12096]
[1763410090027,15.0290471,130.03,129.99,0.71]
[1763410090234,15.0290471,130.05,130.0,15.0290471]
[1763410090404,9.78882769,130.07,130.01,15.7390471]
[1763410090709,8.95678307,130.14,130.01,0.71]
[1763410090897,15.0290471,130.05,130.0,33.1500071]
[1763410091097,9.78882769,130.08,130.01,15.0290471]
[1763410091310,9.78882769,130.08,130.0,33.8600071]
[1763410091311,15.0290471,130.05,130.0,33.8600071]
[1763410091729,15.0290471,130.05,130.01,0.65]
[1763410092102,24.81787479,130.04,129.97,0.65]
[1763410092322,15.0290471,130.04,129.99,15.0290471]
[1763410092528,15.0290471,130.04,129.98,18.12096]
[1763410092529,9.78882769,130.03,129.98,15.0290471]
[1763410092711,15.0290471,130.0,129.95,15.0290471]
[1763410092915,15.0290471,130.0,129.87,9.98882769]
[1763410092916,15.0290471,129.98,129.93,15.0290471]
[1763410093331,15.0290471,129.98,129.94,0.65]
[1763410093638,15.0290471,129.97,129.94,0.65]
[1763410093930,15.0290471,129.97,129.91,15.6790471]
[1763410094313,15.0290471,129.96,129.91,0.65]
[1763410094824,10.43882769,129.99,129.92,15.0290471]
[1763410095031,10.43882769,129.99,129.91,0.65]
[1763410095032,24.81787479,129.98,129.93,15.0290471]
[1763410095529,25.46787479,129.98,129.93,15.0290471]
[1763410095932,15.0290471,129.97,129.91,0.65]
[1763410096133,0.65,129.97,129.92,15.0290471]
[1763410096430,9.78882769,129.98,129.89,18.12096]
[1763410096431,0.65,129.96,129.89,18.12096]
[1763410096632,0.65,129.96,129.9,15.0290471]
[1763410096808,10.43882769,129.98,129.89,18.77096]
[1763410097103,9.78882769,129.98,129.91,15.0290471]
[1763410097308,9.78882769,129.96,129.91,15.0290471]
[1763410097625,9.78882769,130.0,129.92,15.0290471]
[1763410097931,27.90978769,129.97,129.92,15.0290471]
[1763410098122,24.81787479,129.97,129.92,15.0290471]
[1763410098328,0.65,129.98,129.93,15.7190471]
[1763410098627,0.65,129.98,129.93,15.0290471]
[1763410098836,9.78882769,129.99,129.95,15.0290471]
[1763410099011,24.81787479,129.99,129.94,15.7190471]
[1763410099221,9.78882769,130.0,129.96,15.0290471]
[1763410099913,0.65,130.05,129.98,15.0290471]
[1763410100166,0.65,130.08,130.01,15.0290471]
[1763410100451,15.0290471,130.06,130.01,15.0290471]
[1763410100737,0.65,130.08,130.02,15.0290471]
[1763410100738,24.81787479,130.07,130.02,15.0290471]
[1763410100953,0.65,130.08,130.01,18.12096]
[1763410100954,18.12096,130.13,130.01,18.12096]
[1763410101124,15.0290471,130.08,130.03,15.0290471]
[1763410101510,10.43882769,130.09,129.98,0.69]
[1763410101511,15.6790471,130.07,129.98,0.69]
[1763410101717,9.78882769,130.04,129.99,15.0290471]
[1763410102012,25.46787479,130.06,130.01,15.0290471]
[1763410102230,24.81787479,130.03,129.96,18.12096]
[1763410102437,15.0290471,130.02,129.97,15.0290471]
[1763410102647,9.78882769,130.01,129.96,15.0290471]
[1763410103139,25.46787479,130.01,129.96,15.0290471]
[1763410103517,15.0290471,130.0,129.94,0.69]
[1763410103712,9.78882769,130.01,129.9,0.69]
[1763410103713,15.0290471,129.96,129.9,0.69]
[1763410103959,15.0290471,129.95,129.9,15.0290471]
[1763410104125,27.90978769,129.98,129.91,15.0290471]
[1763410104329,15.0290471,129.94,129.89,15.0290471]
[1763410104644,15.0290471,129.92,129.87,15.9190471]
[1763410105014,15.0290471,129.91,129.87,0.2]
[1763410105215,15.6790471,129.92,129.87,0.2]
[1763410105416,2.0,130.01,129.89,15.0290471]
[1763410105640,6.95678307,130.04,129.89,15.0290471]
[1763410105641,15.0290471,129.94,129.89,15.0290471]
[1763410106433,15.0290471,129.97,129.92,15.0290471]
[1763410106620,24.81787479,129.98,129.93,15.0290471]
[1763410106822,9.78882769,129.94,129.87,0.89]
[1763410107121,22.62186659,129.94,129.87,0.89]
[1763410107323,22.62186659,129.94,129.89,12.8330389]
[1763410107638,9.78882769,129.95,129.91,12.8330389]
[1763410107840,0.65,129.99,129.93,12.8330389]
[1763410108150,22.62186659,129.98,129.93,12.8330389]
[1763410108358,12.8330389,129.97,129.92,12.8330389]
[1763410108642,9.78882769,129.98,129.92,12.8330389]
[1763410108643,9.78882769,129.99,129.95,12.8330389]
[1763410108953,12.8330389,130.0,129.95,12.8330389]
[1763410109133,9.78882769,130.0,129.96,12.8330389]
[1763410109335,12.8330389,130.01,129.96,12.8330389]
[1763410109640,9.78882769,130.0,129.96,12.8330389]
[1763410109947,23.27186659,130.0,129.93,18.81096]
[1763410110143,12.8330389,129.99,129.94,12.8330389]
[1763410110319,9.78882769,129.96,129.89,18.12096]
[1763410110518,9.78882769,129.96,129.92,12.8330389]
[1763410111447,12.8330389,129.96,129.91,12.8330389]
[1763410111757,9.78882769,129.95,129.91,12.8330389]
[1763410111961,22.62186659,129.95,129.9,12.8330389]
[1763410112163,22.62186659,129.95,129.87,0.2]
[1763410112164,9.78882769,129.92,129.87,0.89]
[1763410112460,12.8330389,129.94,129.89,12.8330389]
[1763410112666,9.78882769,129.93,129.88,12.8330389]
[1763410112833,22.62186659,129.93,129.88,12.8330389]
[1763410113032,9.78882769,129.94,129.9,12.8330389]
[1763410113257,12.8330389,129.95,129.91,12.8330389]
[1763410113258,9.78882769,129.95,129.91,12.8330389]
[1763410113660,22.62186659,129.95,129.9,12.8330389]
[1763410113843,12.8330389,129.96,129.91,12.8330389]
[1763410114042,12.8330389,129.96,129.92,12.8330389]
[1763410114043,9.78882769,129.96,129.92,12.8330389]
[1763410114346,9.78882769,129.96,129.89,18.81096]
[1763410114347,9.78882769,129.94,129.91,12.8330389]
[1763410114545,12.8330389,129.96,129.9,30.9539989]
[1763410114861,9.78882769,129.96,129.92,9.07666465]
[1763410116243,9.78882769,129.96,129.91,9.07666465]
[1763410116460,9.78882769,129.96,129.92,9.07666465]
[1763410116744,0.65,129.98,129.9,18.81096]
[1763410116745,9.07666465,129.98,129.93,9.07666465]
[1763410116943,0.65,130.01,129.95,9.07666465]
[1763410117289,9.07666465,129.99,129.94,9.07666465]
[1763410117862,9.78882769,129.99,129.95,9.76666465]
[1763410118061,9.78882769,129.99,129.92,18.12096]
[1763410118246,9.78882769,130.0,129.95,9.07666465]
[1763410118567,9.78882769,130.03,129.97,9.07666465]
[1763410118757,27.90978769,130.03,129.97,9.07666465]
[1763410118951,9.78882769,130.01,129.97,9.07666465]
[1763410119277,9.78882769,130.01,129.93,0.69]
[1763410119278,18.86549234,130.01,129.96,9.07666465]
[1763410119443,18.86549234,129.99,129.93,0.69]
[1763410119644,9.07666465,129.99,129.94,9.07666465]
[1763410119863,9.07666465,129.99,129.95,9.07666465]
[1763410119864,9.78882769,129.99,129.95,9.07666465]
[1763410120743,9.78882769,129.99,129.9,18.12096]
[1763410120744,11.07666465,130.08,129.97,9.07666465]
[1763410120974,11.07666465,130.08,129.96,0.69]
[1763410120975,9.78882769,130.01,129.96,0.69]
[1763410121162,9.78882769,129.99,129.95,9.07666465]
[1763410121349,18.86549234,129.99,129.94,9.07666465]
[1763410121544,9.78882769,129.99,129.94,9.76666465]
[1763410121970,9.78882769,129.98,129.94,9.07666465]
[1763410122380,9.73666465,129.98,129.93,9.07666465]
[1763410122575,18.86549234,129.97,129.92,9.07666465]
[1763410123287,18.86549234,129.97,129.93,9.07666465]
[1763410123288,10.44882769,129.97,129.93,9.07666465]
[1763410124091,9.07666465,129.99,129.89,18.12096]
[1763410124380,9.07666465,129.98,129.93,9.07666465]
[1763410124548,9.07666465,129.98,129.9,18.84096]
[1763410124743,10.44882769,129.99,129.94,9.07666465]
[1763410124948,9.78882769,129.99,129.95,9.07666465]
[1763410125144,9.78882769,129.99,129.96,9.07666465]
[1763410125445,27.90978769,130.0,129.96,9.07666465]
[1763410125663,9.78882769,130.0,129.96,9.07666465]
[1763410125864,9.07666465,130.02,129.97,9.07666465]
[1763410126051,9.78882769,130.02,129.98,9.07666465]
[1763410126247,9.78882769,130.03,129.99,9.07666465]
[1763410126641,9.78882769,130.03,129.98,0.72]
[1763410126845,9.78882769,130.03,129.99,9.07666465]
[1763410127373,18.12096,130.04,130.0,9.07666465]
[1763410127579,9.07666465,130.06,130.01,9.07666465]
[1763410127770,9.78882769,130.06,130.02,9.07666465]
[1763410128267,9.73666465,130.07,130.02,9.07666465]
[1763410128469,19.52549234,130.06,129.98,0.72]
[1763410128670,19.52549234,130.06,130.0,9.07666465]
[1763410128855,9.78882769,130.03,129.99,9.07666465]
[1763410129055,9.78882769,130.03,129.97,18.84096]
[1763410129056,9.78882769,130.03,130.0,9.07666465]
[1763410129261,9.78882769,130.04,130.0,9.07666465]
[1763410129458,36.98645234,130.07,130.02,9.07666465]
[1763410129662,27.90978769,130.07,130.02,9.07666465]
[1763410129865,9.73666465,130.06,130.01,9.07666465]
[1763410130072,9.78882769,130.05,130.01,9.07666465]
[1763410130473,10.44882769,130.05,130.01,9.07666465]
[1763410130776,9.07666465,130.06,130.01,9.07666465]
[1763410130996,18.78096,130.07,130.03,9.07666465]
[1763410130997,9.78882769,130.07,130.03,9.07666465]
[1763410131193,9.78882769,130.07,130.02,9.79666465]
[1763410131352,9.78882769,130.07,130.03,9.07666465]
[1763410131553,9.78882769,130.08,130.04,9.07666465]
[1763410131862,0.66,130.12,130.06,9.07666465]
[1763410132076,9.07666465,130.11,130.06,9.07666465]
[1763410132674,9.78882769,130.1,130.06,9.79666465]
[1763410132978,0.66,130.11,130.05,0.72]
[1763410133177,9.78882769,130.1,130.02,18.12096]
[1763410133478,9.78882769,130.08,130.03,0.72]
[1763410133653,9.78882769,130.08,130.04,9.07666465]
[1763410133853,9.78882769,130.08,130.04,9.79666465]
[1763410134280,9.07666465,130.1,130.05,9.79666465]
[1763410134469,9.78882769,130.1,130.06,9.07666465]
[1763410134672,19.52549234,130.1,130.05,9.79666465]
[1763410134879,10.44882769,130.1,130.05,9.79666465]
[1763410135191,9.07666465,130.06,129.98,0.72]
[1763410135356,27.19762465,130.04,129.94,6.4598658]
[1763410135556,27.19762465,130.04,129.92,9.07666465]
[1763410135557,27.19762465,130.04,129.99,9.07666465]
[1763410136059,9.78882769,130.03,129.99,0.72]
[1763410136585,9.78882769,130.03,129.99,9.79666465]
[1763410136963,9.07666465,130.05,130.0,0.72]
[1763410137160,9.78882769,130.05,130.0,9.79666465]
[1763410137574,9.78882769,130.05,130.01,0.72]
[1763410137778,9.07666465,130.05,130.0,9.79666465]
[1763410137971,9.07666465,130.05,130.0,0.72]
[1763410138180,9.78882769,130.03,129.98,9.07666465]
[1763410138389,18.86549234,130.03,129.97,9.79666465]
[1763410139076,18.86549234,130.03,129.97,0.72]
[1763410139278,18.86549234,130.03,129.97,9.79666465]
[1763410139688,18.86549234,130.03,129.97,0.72]
[1763410139895,18.86549234,130.03,129.97,9.79666465]
[1763410140385,9.07666465,130.03,129.98,9.79666465]
[1763410140590,9.78882769,130.03,129.95,0.72]
[1763410140796,18.86549234,130.01,129.96,9.07666465]
[1763410140966,9.78882769,130.03,129.96,9.07666465]
[1763410141170,9.78882769,130.03,129.97,0.72]
[1763410141492,9.07666465,130.01,129.97,0.72]
[1763410141695,18.86549234,130.03,129.97,0.72]
[1763410142008,0.66,130.06,129.99,9.07666465]
[1763410142176,9.78882769,130.04,130.0,9.07666465]
[1763410142370,18.86549234,130.04,129.98,9.79666465]
[1763410142567,9.07666465,130.02,129.98,0.72]
[1763410142794,10.44882769,130.04,129.96,9.79666465]
[1763410142968,0.66,130.03,129.96,9.79666465]
[1763410143299,0.66,130.03,129.83,18.12096]
[1763410143300,9.78882769,129.96,129.91,0.72]
[1763410143481,0.66,130.03,129.93,9.07666465]
[1763410143677,9.07666465,130.0,129.91,0.72]
[1763410143992,9.07666465,130.01,129.95,9.07666465]
[1763410144193,19.52549234,130.02,129.92,27.19762465]
[1763410144402,19.52549234,130.02,129.93,0.72]
[1763410144403,9.07666465,130.0,129.93,0.72]
[1763410144694,9.07666465,129.99,129.94,9.07666465]
[1763410145193,9.07666465,129.99,129.95,0.72]
[1763410145398,9.78882769,129.99,129.95,9.79666465]
[1763410145974,9.78882769,130.01,129.97,9.07666465]
[1763410146495,9.78882769,130.01,129.97,9.79666465]
[1763410146706,9.78882769,130.01,129.97,0.72]
[1763410146870,18.86549234,130.01,129.97,0.72]
[1763410147383,9.78882769,130.01,129.97,0.72]
[1763410147583,9.78882769,130.01,129.97,9.79666465]
[1763410147897,9.78882769,130.07,130.0,9.07666465]
[1763410148106,9.07666465,130.06,130.01,9.07666465]
[1763410148278,0.66,130.08,130.02,9.79666465]
[1763410148480,0.66,130.08,129.96,18.12096]
[1763410148481,9.78882769,130.04,129.96,18.12096]
[1763410148788,6.48169067,130.13,130.02,9.07666465]
[1763410148789,0.66,130.09,130.02,9.07666465]
[1763410148970,9.78882769,130.07,130.04,9.07666465]
[1763410149174,0.76,130.13,130.06,9.07666465]
[1763410149471,0.1,130.13,130.09,9.07666465]
[1763410149670,0.1,130.13,130.1,9.07666465]
[1763410150089,19.62549234,130.13,130.06,0.72]
[1763410150288,0.1,130.13,130.07,0.72]
[1763410150486,9.17666465,130.13,130.08,9.07666465]
[1763410150892,9.07666465,130.12,130.07,9.79666465]
[1763410151081,18.86549234,130.11,130.07,0.72]
[1763410151476,9.17666465,130.13,130.08,9.07666465]
[1763410151783,9.88882769,130.13,130.09,9.73666465]
[1763410152321,9.88882769,130.13,130.1,0.66]
[1763410153093,0.1,130.13,130.11,9.07666465]
[1763410153394,0.1,130.13,130.1,0.66]
[1763410153594,0.1,130.13,130.11,9.07666465]
[1763410153898,0.1,130.13,130.1,9.73666465]
[1763410154081,0.1,130.13,130.0,17.56510853]
[1763410154082,9.84666465,130.13,130.07,0.66]
[1763410154394,9.17666465,130.13,130.08,9.07666465]
[1763410154770,9.17666465,130.13,130.08,0.66]
[1763410154976,9.17666465,130.13,130.09,0.66]
[1763410155172,9.84666465,130.13,130.07,9.07666465]
[1763410155370,9.84666465,130.13,130.04,18.12096]
[1763410155371,9.78882769,130.11,130.05,0.66]
[1763410155587,9.07666465,130.11,130.06,9.07666465]
[1763410155771,18.86549234,130.12,130.07,9.07666465]
[1763410155972,0.1,130.13,130.08,9.07666465]
[1763410156197,9.88882769,130.13,130.09,9.07666465]
[1763410156402,18.96549234,130.13,130.05,0.66]
[1763410156577,9.88882769,130.13,130.09,9.07666465]
[1763410157093,9.88882769,130.13,130.1,9.07666465]
[1763410158096,9.88882769,130.13,130.08,0.67]
[1763410158097,0.1,130.13,130.08,0.67]
[1763410158404,0.1,130.13,130.1,9.07666465]
[1763410158901,9.78882769,130.12,130.09,9.07666465]
[1763410159279,0.1,130.13,130.1,9.07666465]
[1763410159572,0.1,130.13,130.11,9.07666465]
[1763410159998,0.1,130.13,130.11,9.74666465]
[1763410160212,0.1,130.13,130.11,9.07666465]
[1763410160385,0.1,130.13,130.09,0.67]
[1763410160595,0.1,130.13,130.11,9.07666465]
[1763410160793,0.1,130.13,130.12,9.07666465]
[1763410161291,0.1,130.13,130.12,9.74666465]
[1763410164705,0.1,130.13,130.12,0.67]
[1763410164893,0.1,130.13,130.12,9.74666465]
[1763410165893,0.1,130.18,130.12,9.74666465]
[1763410166205,0.1,130.18,130.17,9.07666465]
[1763410166706,0.1,130.18,130.17,9.74666465]
[1763410167409,0.1,130.18,130.13,0.67]
[1763410167608,0.1,130.18,130.17,9.07666465]
[1763410168409,0.1,130.18,130.17,9.74666465]
[1763410168582,9.78882769,130.25,130.19,9.07666465]
[1763410168783,0.1,130.27,130.2,0.67]
[1763410168982,18.12096,130.26,130.23,14.15582634]
[1763410169179,0.1,130.27,130.23,14.82582634]
[1763410169616,9.78882769,130.25,130.2,0.67]
[1763410169834,24.64465403,130.25,130.2,0.67]
[1763410170122,10.48882769,130.25,130.2,14.82582634]
[1763410170325,10.48882769,130.25,130.21,14.15582634]
[1763410170489,9.78882769,130.25,130.21,14.82582634]
[1763410170689,0.8,130.27,130.22,14.82582634]
[1763410170889,0.1,130.27,130.24,14.15582634]
[1763410171429,0.1,130.27,130.25,14.82582634]
[1763410171724,0.1,130.27,130.26,14.15582634]
[1763410171932,0.1,130.27,130.26,14.82582634]
[1763410173021,0.7,130.35,130.26,32.94678634]
[1763410173230,0.7,130.38,130.32,14.15582634]
[1763410173523,0.8,130.37,130.32,14.15582634]
[1763410173728,9.78882769,130.36,130.33,14.82582634]
[1763410174023,0.1,130.37,130.33,14.15582634]
[1763410174223,0.1,130.37,130.34,14.15582634]
[1763410174423,0.8,130.37,130.32,14.15582634]
[1763410174603,9.78882769,130.36,130.3,0.67]
[1763410174801,14.95582634,130.37,130.23,23.94465403]
[1763410174802,14.15582634,130.33,130.27,14.82582634]
[1763410175125,14.15582634,130.33,130.15,6.20071447]
[1763410175126,23.94465403,130.3,130.25,14.15582634]
[1763410175312,14.15582634,130.29,130.24,0.67]
[1763410175508,14.15582634,130.29,130.22,14.15582634]
[1763410175509,23.94465403,130.28,130.22,14.15582634]
[1763410175821,9.78882769,130.26,130.21,0.67]
[1763410176036,9.78882769,130.26,130.22,14.15582634]
[1763410176323,9.78882769,130.27,130.23,0.67]
[1763410176695,9.78882769,130.27,130.23,14.82582634]
[1763410176924,9.78882769,130.27,130.24,14.82582634]
[1763410177137,9.78882769,130.27,130.25,0.67]
[1763410177302,9.78882769,130.27,130.24,14.15582634]
[1763410177496,9.78882769,130.27,130.24,0.67]
[1763410177702,9.78882769,130.28,130.24,0.67]
[1763410177904,14.15582634,130.27,130.22,14.15582634]
[1763410178122,23.94465403,130.26,130.21,14.82582634]
[1763410178322,23.94465403,130.26,130.19,14.15582634]
[1763410178323,14.15582634,130.25,130.19,14.15582634]
[1763410178718,24.64465403,130.26,130.2,14.82582634]
[1763410178898,14.15582634,130.25,130.2,14.15582634]
[1763410179100,14.85582634,130.25,130.19,14.15582634]
[1763410179304,14.85582634,130.25,130.2,14.15582634]
[1763410179548,23.94465403,130.24,130.18,14.82582634]
[1763410180025,23.94465403,130.24,130.19,14.15582634]
[1763410180215,24.64465403,130.24,130.18,14.82582634]
[1763410180807,9.78882769,130.23,130.19,14.15582634]
[1763410181124,9.78882769,130.24,130.19,14.82582634]
[1763410181332,24.64465403,130.24,130.19,0.67]
[1763410181528,14.85582634,130.23,130.18,14.15582634]
[1763410181737,10.48882769,130.23,130.18,14.15582634]
[1763410182031,9.78882769,130.22,130.18,14.84582634]
[1763410182603,9.78882769,130.22,130.18,0.69]
[1763410182806,9.78882769,130.22,130.18,14.84582634]
[1763410183041,9.78882769,130.22,130.19,14.15582634]
[1763410184325,9.78882769,130.22,130.18,0.69]
[1763410184531,9.78882769,130.23,130.2,14.15582634]
[1763410184736,9.78882769,130.23,130.21,14.15582634]
[1763410184938,0.71,130.25,130.19,0.69]
[1763410185110,10.49882769,130.25,130.2,14.15582634]
[1763410185313,9.78882769,130.24,130.19,0.69]
[1763410185553,18.83096,130.28,130.22,14.15582634]
[1763410185713,9.78882769,130.27,130.22,14.15582634]
[1763410186045,10.49882769,130.27,130.22,14.15582634]
[1763410186339,9.78882769,130.25,130.22,14.15582634]
[1763410186546,9.78882769,130.25,130.21,14.15582634]
[1763410186712,9.78882769,130.25,130.21,14.84582634]
[1763410187117,0.71,130.25,130.21,14.15582634]
[1763410187466,24.65465403,130.24,130.18,0.69]
[1763410187611,42.77561403,130.24,130.18,14.15582634]
[1763410187949,9.78882769,130.22,130.18,14.15582634]
[1763410188451,18.12096,130.24,130.12,0.69]
[1763410188452,9.78882769,130.18,130.12,0.69]
[1763410188633,9.78882769,130.18,130.13,14.15582634]
[1763410188819,24.65465403,130.2,130.14,14.15582634]
[1763410189019,14.15582634,130.19,130.14,14.15582634]
[1763410189425,0.71,130.19,130.15,14.15582634]
[1763410189718,9.78882769,130.18,130.15,14.15582634]